Cogmind - Beta 14 @@@ ROGUE MODE // 2024.10.09 @ 00:22:36 Player: puppuppit Result: Destroyed by B-75 Beast with Magnetic Acceleration Cannon Performance ------------- Evolutions (3) 1500 Regions Visited (11) 2200 Robots Destroyed (320) 1600 Value Destroyed (12012) 12012 Prototype IDs (42) 840 Alien Tech Used (0) 0 Bonus (9141) 9141 TOTAL SCORE: 27293 Bonus ------- Triggered High Security 1500 High Alert Combat Kills 6101 Follower Combat Kills 602 Entered Garrisons 400 Aligned with FarCom 300 Acquired ECA 300 Friendly Fire -62 Cogmind --------- Core Integrity 0/700 Matter 300/300 Energy 98/100 System Corruption 7% Temperature Cool (0) Movement Core (50) Location -7/Lower Caves Parts ------- > --- POWER (1) -------- (None) > --- PROPULSION (4) --- (None) > --- UTILITY (4) ------ (None) > --- WEAPON (4) ------- Spread Laser > --- INVENTORY (5) ---- Encrypted Comm Array 0b10 Alert Chip Core Analyzer Peak State ------------ > --- POWER ------------ Deuterium Engine > --- PROPULSION ------- Improved Heavy Treads Improved Heavy Treads > --- UTILITY ---------- Coolant Injector Active Sensor Suite > --- WEAPON ----------- PD Laser Heavy Missile Launcher > --- INVENTORY -------- VTOL Module Advanced Heat Sink 0b10 Alert Chip Layered Heavy Armor Plating [Rating: 89] Favorites ----------- Power Light Nuclear Core Engine Deuterium Engine Power Core Light Nuclear Core Propulsion Wheel Treads Improved Heavy Treads Leg Aluminum Leg Wheel Wheel Hover Unit Improved Hover Unit Flight Unit VTOL Module Utility Hacking Suite Device Coolant Injector Storage Medium Storage Unit Processor Core Analyzer Hackware Hacking Suite Protection Heavy Armor Plating Weapon Improved Light Cannon Energy Gun EM Pulse Gun Energy Cannon Plasma Cannon Ballistic Gun Precision Assault Rifle Ballistic Cannon Improved Light Cannon Launcher Heavy Missile Launcher Impact Weapon Hammer Slashing Weapon Scythe Build | -11 -10 -10 -10 -9 -8 -8 -8 -7 -7 -7 -7 ------- Run | Yrd Mat Min Exi Min Mat Gar Mat Fac Gar Fac Low Slots Evolved 6 | . . . . . 4 . . 2 . . . Power . | . . . . . . . . . . . . Propulsion 2 | . . . . . 2 . . . . . . Utility 2 | . . . . . 1 . . 1 . . . Weapon 2 | . . . . . 1 . . 1 . . . Parts Attached 251 | 6 19 7 2 8 17 29 75 38 43 6 1 Power 24 | 1 2 1 . 1 . 3 8 2 6 . . Engine 11 | 1 1 . . 1 . 1 5 . 2 . . Core 13 | . 1 1 . . . 2 3 2 4 . . Reactor . | . . . . . . . . . . . . Propulsion 59 | 2 7 1 2 2 6 3 16 11 9 . . Treads 7 | . . . . . . 3 . . 4 . . Leg 6 | . . . . . . . 4 2 . . . Wheel 18 | 2 7 1 . 2 . . 6 . . . . Hover 20 | . . . 2 . 6 . 4 8 . . . Flight 8 | . . . . . . . 2 1 5 . . Utility 45 | 1 2 2 . 1 4 4 12 7 11 1 . Device 19 | . 1 2 . . . . 3 5 7 1 . Storage 2 | 1 1 . . . . . . . . . . Processor 5 | . . . . . 1 . 3 . 1 . . Hackware 6 | . . . . . 2 . 2 2 . . . Protection 13 | . . . . 1 1 4 4 . 3 . . Artifact . | . . . . . . . . . . . . Weapon 123 | 2 8 3 . 4 7 19 39 18 17 5 1 Energy Gun 9 | 1 1 . . . . 3 2 . 1 . 1 Energy Cannon 6 | . 2 . . . . . . . 4 . . Ballistic Gun 45 | 1 1 . . . . 6 21 12 4 . . Ballistic Cannon 28 | . 2 2 . 4 6 7 . . 4 3 . Launcher 30 | . . 1 . . 1 3 13 6 4 2 . Special Weapon . | . . . . . . . . . . . . Impact Weapon 2 | . 2 . . . . . . . . . . Slashing Weapon 3 | . . . . . . . 3 . . . . Piercing Weapon . | . . . . . . . . . . . . Special Melee Weapon . | . . . . . . . . . . . . Unidentified Prototypes 6 | . . 1 . . . . 3 1 1 . . Parts Lost 60 | . 5 1 . . 6 7 23 14 . 4 . Power 5 | . 1 . . . 1 . 2 . . 1 . Propulsion 27 | . 1 1 . . 2 4 12 7 . . . Utility 9 | . . . . . 1 . 6 2 . . . Weapon 19 | . 3 . . . 2 3 3 5 . 3 . Highest Loss Streak 11 | . 1 1 . . 4 2 5 11 . 3 . To Critical Strikes . | . . . . . . . . . . . . Average Slot Usage (%) 74 | . 90 91 58 94 74 61 74 91 65 63 1 Engine 2 | . 3 . . 9 6 1 2 . 3 . . Core 3 | . 4 5 . . . 4 2 5 3 5 . Treads 4 | . . . . . . 10 1 . 9 14 . Leg 2 | . . . . . . . 10 6 . . . Wheel 7 | . 27 28 1 25 8 . 7 . . . . Hover 4 | . . . 26 2 23 1 6 15 . . . Flight 2 | . . . . . . . 1 3 8 . . Device 7 | . 11 14 14 8 . . 3 5 13 14 . Storage 4 | . 14 14 14 14 9 1 . . . . . Processor 4 | . . . . . . 9 7 7 2 6 . Hackware 3 | . . . . . 2 1 4 15 2 . . Protection 3 | . . . . 5 1 6 4 . 5 6 . Energy Gun 1 | . 7 . . . . . . . 1 . 1 Ballistic Gun 9 | . 9 . . . . 9 19 28 . . . Ballistic Cannon 9 | . 8 27 1 26 22 13 . . 10 13 . Peak Build Rating 89 | 6 12 20 11 15 20 22 35 49 89 62 3 Average Rating 28 | 5 8 11 8 13 16 19 23 41 60 58 1 On Entrance 16 | . 6 10 11 8 14 20 21 30 11 62 1 Naked Turns 152 | . . . . . . . . . . 16 136 Heaviest Build 58 | 13 24 24 19 30 31 32 31 28 58 54 3 Greatest Support 150 | 20 26 26 20 32 32 40 40 34 150 150 3 Greatest Overweight (x) 3 | 1 1 . . 1 1 3 3 3 2 . . Average Overweight (x) . | . . . . . . . . . . . . Largest Inventory Capacity 10 | 8 10 10 10 10 10 10 5 5 5 5 5 Average Capacity 6 | 7 9 10 10 10 10 6 5 5 5 5 5 Most Carried 10 | 2 10 10 10 10 10 7 5 5 5 5 3 Average Carried 5 | . 7 8 9 9 7 4 4 4 4 4 2 Final Capacity 10 | 8 10 10 10 10 10 5 5 5 5 5 5 Final Carried 10 | 2 8 8 10 10 6 5 5 5 5 5 3 Class Distribution -------------------- 36% | Scavenger-Skirmisher 29% | Mutant 7% | Hacker-Skirmisher 6% | Scavenger-Mutant 5% | Scavenger-Gunner 4% | Commander-Skirmisher 3% | Skirmisher 3% | Commander-Gunner Dominant Class ---------------- Mutant | -10/Materials Mutant | -10/Mines Mutant | -10/Exiles Mutant | -9/Mines Mutant | -8/Materials Scavenger-Skirmisher | -8/Garrison Scavenger-Skirmisher | -8/Materials Scavenger-Skirmisher | -7/Factory Scavenger-Skirmisher | -7/Garrison Scavenger-Gunner | -7/Factory Mutant | -7/Lower Caves Resources | -11 -10 -10 -10 -9 -8 -8 -8 -7 -7 -7 -7 ----------- Run | Yrd Mat Min Exi Min Mat Gar Mat Fac Gar Fac Low Matter Collected 9740 | 187 676 787 20 515 378 1092 2385 1903 1312 446 39 Remotely . | . . . . . . . . . . . . Salvage Created 12072 | 165 1323 722 . 399 588 701 3249 2673 1443 791 18 Parts 643 | 14 74 42 . 25 36 33 179 158 47 33 2 Haulers Intercepted 12 | . 2 . . . 1 . 5 4 . . . Recyclers Shooed 8 | . 1 2 . 2 . . 1 2 . . . Parts Field Recycled . | . . . . . . . . . . . . Retrieved Matter . | . . . . . . . . . . . . Parts Self-Destructed 2 | . . . . . . . . . . . 2 Prevented . | . . . . . . . . . . . . Kills | -11 -10 -10 -10 -9 -8 -8 -8 -7 -7 -7 -7 ------- Run | Yrd Mat Min Exi Min Mat Gar Mat Fac Gar Fac Low Combat Hostiles Destroyed 201 | . 16 10 . 5 10 21 57 38 24 19 1 Melee 6 | . . . . . . . 6 . . . . Guns 87 | . 11 . . . . 4 36 30 5 . 1 Cannons 71 | . 4 10 . 5 9 13 . . 14 16 . AOE 36 | . . . . . 1 4 15 8 5 3 . Classes Destroyed 18 | 2 8 . . . 4 . 3 1 . . . Worker 36 | . 7 10 . 2 1 . 6 10 . . . Builder 23 | . 7 6 . . . . 5 5 . . . Tunneler 13 | 4 1 3 . 4 . . . 1 . . . Hauler 12 | . 2 . . . 1 . 5 4 . . . Recycler 21 | 1 4 5 . 5 1 . 3 2 . . . Mechanic 5 | . 1 . . . . . 3 1 . . . Operator 5 | . 1 . . . 1 . 1 2 . . . Watcher 11 | . 2 . . . 2 . 3 4 . . . Swarmer 23 | . 3 . . 5 . . 5 3 6 . 1 Grunt 110 | . 13 10 . . 5 12 32 19 8 11 . Brawler 4 | . . . . . . . 2 . 1 1 . Duelist 8 | . . . . . . . 2 3 2 1 . Protector 2 | . . . . . . . 2 . . . . Sentry 37 | . . . . . 2 7 12 7 4 5 . Specialist 3 | . . . . . 2 . . . 1 . . Hunter 8 | . . . . . 1 2 2 2 1 . . Programmer 6 | . . . . . . . . 4 1 1 . Zionite 1 | . . . . . 1 . . . . . . Best Kill Streak 24 | 5 7 7 . 4 5 4 10 24 6 10 1 Combat Bots Only 10 | . 2 4 . 4 4 4 7 8 6 10 1 Max Kills in Single Turn 3 | 1 1 1 . 2 1 2 3 3 2 3 1 Gunslinging 1 | . . . . . . . . 1 . . . Exploded 3 | . . . . . 1 1 3 2 2 2 . Melee 1 | . . . . . . . 1 . . . . Uniques/NPCs Destroyed . | . . . . . . . . . . . . Combat | -11 -10 -10 -10 -9 -8 -8 -8 -7 -7 -7 -7 -------- Run | Yrd Mat Min Exi Min Mat Gar Mat Fac Gar Fac Low Hostile Shots Fired 1142 | . 75 28 . 30 42 101 251 285 145 177 8 Missed 367 | . 24 10 . 8 11 27 72 111 44 58 2 Damage Taken 10195 | 40 628 271 . 207 508 1303 2784 1786 1206 1338 124 Core 1438 | . 104 71 . 46 85 173 235 383 205 54 82 Absorbed by Shields . | . . . . . . . . . . . . Ignored by Resistances 86 | . . . . . . . . . . 86 . Regen/Repaired (Parts) 252 | . . . . . . . . 105 . 147 . Core Remaining (%) 40 | 100 . . . 11 . . 10 . . . . Volleys Fired 757 | 18 140 78 . 46 27 69 136 106 108 26 3 Largest 4 | 2 2 2 . 2 3 3 3 4 2 2 1 Hottest 136 | 60 136 78 . 87 131 122 117 123 120 120 65 Shots Fired 1762 | 36 273 156 . 92 69 148 388 399 148 50 3 Gun 1024 | 36 191 . . . . 29 356 389 20 . 3 Cannon 663 | . 82 152 . 92 66 108 . . 115 48 . Launcher 75 | . . 4 . . 3 11 32 10 13 2 . Special . | . . . . . . . . . . . . Kinetic 1511 | 18 186 152 . 92 66 136 344 389 80 48 . Thermal 79 | . 8 . . . . 1 12 . 55 . 3 Explosive 75 | . . 4 . . 3 11 32 10 13 2 . Electromagnetic 97 | 18 79 . . . . . . . . . . Robot Hit Streak 38 | 6 15 7 . 3 8 12 22 30 38 10 2 Robot Miss Streak 7 | 2 7 4 . 5 5 3 7 3 7 2 5 Penetration Max 1 | . . . . . . . . 1 1 1 . Secondary Targets 13 | . . . . . . . 8 5 . . . Max Gunslinging Chain 1 | . . . . . . . 1 1 . . . Autonomous 6 | . . . . . . . . . 6 . . Shots Hit Robots 1062 | 23 164 87 . 34 34 81 229 264 109 34 3 Core Hits 549 | 9 55 37 . 16 24 46 139 132 65 23 3 Critical Kills 7 | . 2 . . . . . 2 2 1 . . Critical Parts Destroyed 8 | . 1 . . . . . 1 6 . . . Critical Strikes 40 | . 6 2 . 2 1 2 5 8 8 6 . Meltdown 2 | . 1 . . . . . . . 1 . . Destroy 12 | . 1 . . . . . 3 8 . . . Blast 22 | . 2 2 . 2 1 2 . . 7 6 . Corrupt 1 | . 1 . . . . . . . . . . Smash 1 | . 1 . . . . . . . . . . Sever 2 | . . . . . . . 2 . . . . Melee Attacks 29 | . 5 . . . . . 24 . . . . Impact 5 | . 5 . . . . . . . . . . Slashing 24 | . . . . . . . 24 . . . . Piercing . | . . . . . . . . . . . . Sneak Attacks 3 | . . . . . . . 3 . . . . Combat Hostiles . | . . . . . . . . . . . . Follow-up Attacks 1 | . 1 . . . . . . . . . . Damage Inflicted 30100 | 284 2363 2130 . 918 1009 2743 6443 6557 5297 2323 33 Guns 11079 | 241 1322 . . . . 324 3626 5238 295 . 33 Cannons 11462 | . 907 1849 . 918 815 1161 . . 3920 1892 . Explosions 6870 | 43 106 281 . . 194 1258 2182 1315 1060 431 . Melee 662 | . 28 . . . . . 634 . . . . Ramming 27 | . . . . . . . 1 4 22 . . Kinetic 20154 | 102 1372 1849 . 918 815 1485 3536 5238 2947 1892 . Thermal 1847 | 43 254 55 . . . . 90 104 1268 . 33 Explosive 6534 | . . 226 . . 194 1258 2154 1211 1060 431 . Electromagnetic 876 | 139 709 . . . . . 28 . . . . Impact 28 | . 28 . . . . . . . . . . Slashing 634 | . . . . . . . 634 . . . . Piercing . | . . . . . . . . . . . . Highest Corruption 10 | . 1 1 1 1 . . 10 5 5 7 7 Average Corruption 3 | . 1 1 1 1 . . 4 2 5 5 7 Corruption Purged 3 | . . . . . . . . 3 . . . Corruption Blocked . | . . . . . . . . . . . . Effects 157 | . 7 4 4 3 . . 48 12 63 11 5 Message Errors 32 | . 1 1 1 1 . . 8 2 15 2 1 Matter Fused 35 | . 1 . 1 . . . 10 4 16 3 . Heat Flow Errors 23 | . 1 . . . . . 8 2 9 . 3 Energy Discharges 20 | . 1 1 1 . . . 7 . 9 1 . Parts Rejected 5 | . . 1 . 1 . . 1 . . 2 . Parts Fused 3 | . . . . . . . 1 . 2 . . Data Loss (minor) 18 | . 2 1 1 1 . . 4 3 6 . . Data Loss (major) 4 | . . . . . . . 1 . 2 . 1 Misfires 9 | . . . . . . . 6 1 2 . . Alerts 2 | . . . . . . . 1 . . 1 . Weapon Failures 6 | . 1 . . . . . 1 . 2 2 . Overload Shots . | . . . . . . . . . . . . Overflow Damage 506 | . 49 100 . 61 . 13 85 6 179 13 . Projectiles 347 | . 21 60 . 61 . 13 . . 179 13 . Explosions 79 | . . 40 . . . . 33 6 . . . Melee 80 | . 28 . . . . . 52 . . . . Knockbacks 76 | . 4 18 . 6 5 16 . . 16 11 . Impact . | . . . . . . . . . . . . Kinetic 73 | . 4 18 . 6 5 15 . . 15 10 . Secondary 3 | . . . . . . 1 . . 1 1 . Self-Inflicted Damage 425 | 40 . . . . . 102 79 119 85 . . Shots 15 | 1 . . . . . 4 3 4 3 . . Rammed 2 | . . . . . . . 1 1 . . . Targets Rammed 2 | . . . . . . . 1 1 . . . Kicked . | . . . . . . . . . . . . Crushed . | . . . . . . . . . . . . Highest Temperature 346 | 72 346 156 . 271 166 221 312 149 253 199 94 Average Temperature 60 | 30 44 35 . 50 55 70 81 42 89 70 57 Received Heat Transfer 3591 | . 357 171 . 9 144 459 1197 501 246 498 9 Effects 3 | . . . . . . . 3 . . . . Shutdowns 1 | . . . . . . . 1 . . . . Interference 2 | . . . . . . . 2 . . . . Siege Activations . | . . . . . . . . . . . . Robots Corrupted 1 | . 1 . . . . . . . . . . Combat Hostiles . | . . . . . . . . . . . . Parts Fried 5 | . 5 . . . . . . . . . . Impact Corruptions 1 | . 1 . . . . . . . . . . Robots Melted 2 | . 1 . . . . . . . 1 . . Combat Hostiles 1 | . 1 . . . . . . . . . . Parts Melted 9 | . 2 . . . . . 2 . 5 . . Heat Transferred 3109 | 50 359 50 . . . . 185 50 2375 . 40 Parts Sabotaged . | . . . . . . . . . . . . Parts Stolen . | . . . . . . . . . . . . Parts Stripped . | . . . . . . . . . . . . Power Chain Reactions 3 | 1 2 . . . . . . . . . . Alert | -11 -10 -10 -10 -9 -8 -8 -8 -7 -7 -7 -7 ------- Run | Yrd Mat Min Exi Min Mat Gar Mat Fac Gar Fac Low Peak Influence 3338 | 25 525 481 . 216 616 1698 2153 2209 3338 2410 . Initial 1752 | . 16 204 . . 83 400 827 1100 1511 1752 . Average 1266 | 9 263 367 . 79 333 1044 1472 1443 2456 2038 . Maximum Alert Level 5 | . 2 2 . 1 2 5 5 5 5 5 . Low Security (%) 11 | 100 42 . . 85 32 . . . . . . Level 1 9 | . 29 67 . 14 30 . . . . . . Level 2 8 | . 27 32 . . 36 13 . . . . . Level 3 13 | . . . . . . 38 22 10 . . . Level 4 24 | . . . . . . 45 42 60 2 . . Level 5 24 | . . . . . . 2 11 11 97 20 . High Security 8 | . . . . . . . 23 17 . 79 . Max Security . | . . . . . . . . . . . . Sterilizations 1 | . . . . . . . 1 . . . . Squads Dispatched 59 | . 4 . . . 5 . 14 23 . 13 . Investigation 16 | . 3 . . . 1 . 7 3 . 2 . Extermination 2 | . . . . . . . . 2 . . . Reinforcement 12 | . 1 . . . 3 . 4 4 . . . Assault 21 | . . . . . . . 3 10 . 8 . Garrison 8 | . . . . . 1 . . 4 . 3 . Intercept . | . . . . . . . . . . . . Searches Triggered . | . . . . . . . . . . . . Construction Impeded 3 | . . . . . . . 2 1 . . . Haulers Reinforced 1 | . . . . . . . . 1 . . . Active Scanning Responses . | . . . . . . . . . . . . Cargo Convoy Interrupts . | . . . . . . . . . . . . Stealth | -11 -10 -10 -10 -9 -8 -8 -8 -7 -7 -7 -7 --------- Run | Yrd Mat Min Exi Min Mat Gar Mat Fac Gar Fac Low Distress Signals 9 | . 1 . . . 2 . 3 2 . 1 . Communications Jammed . | . . . . . . . . . . . . Distress Signals . | . . . . . . . . . . . . Times Spotted 329 | . 31 9 . 14 19 22 85 71 31 41 6 Peak Tracking Total 16 | . 3 2 . 11 8 4 7 16 7 14 7 Tactical Retreats 23 | . 3 . . . 4 1 8 3 . 2 2 Traps | -11 -10 -10 -10 -9 -8 -8 -8 -7 -7 -7 -7 ------- Run | Yrd Mat Min Exi Min Mat Gar Mat Fac Gar Fac Low Traps Triggered 18 | . . . . . 1 2 4 4 7 . . Indirectly . | . . . . . . . . . . . . Trap Hack Attempts . | . . . . . . . . . . . . Triggered . | . . . . . . . . . . . . Disarmed . | . . . . . . . . . . . . Reprogrammed . | . . . . . . . . . . . . Reused . | . . . . . . . . . . . . Traps Extracted . | . . . . . . . . . . . . Installed . | . . . . . . . . . . . . Triggered . | . . . . . . . . . . . . Machines | -11 -10 -10 -10 -9 -8 -8 -8 -7 -7 -7 -7 ---------- Run | Yrd Mat Min Exi Min Mat Gar Mat Fac Gar Fac Low Machines Disabled 51 | . 1 5 . 1 1 9 8 6 17 3 . Max in Single Turn 2 | . 1 1 . 1 1 2 2 2 2 1 . Garrison Relay 9 | . . . . . . 5 . . 4 . . Phase Generator 2 | . . . . . . 1 . . 1 . . Machines Repaired . | . . . . . . . . . . . . Machines Dismantled . | . . . . . . . . . . . . Machines Sabotaged . | . . . . . . . . . . . . Overloaded Fab Kills . | . . . . . . . . . . . . Hacking | -11 -10 -10 -10 -9 -8 -8 -8 -7 -7 -7 -7 --------- Run | Yrd Mat Min Exi Min Mat Gar Mat Fac Gar Fac Low Machines Accessed 35 | . 7 . 5 1 1 2 9 6 2 2 . Terminals 21 | . 7 . . . . 2 6 3 2 1 . Fabricators . | . . . . . . . . . . . . Repair Stations 4 | . . . . . . . 2 1 . 1 . Recycling Units . | . . . . . . . . . . . . Scanalyzers 2 | . . . . . . . 1 1 . . . Garrison Access 2 | . . . . . 1 . . 1 . . . Total Hacks 142 | . 25 . 50 1 1 2 27 18 10 8 . Successful 86 | . 10 . 50 1 1 2 9 8 2 3 . Failed 55 | . 14 . . . . . 18 10 8 5 . Catastrophic 10 | . 2 . . . . . 3 2 1 2 . Database Lockouts 1 | . 1 . . . . . . . . . . Manual 28 | . 12 . 1 . . . 8 5 2 . . Terminals 71 | . 25 . . . . 2 20 9 10 5 . Fabricators . | . . . . . . . . . . . . Repair Stations 11 | . . . . . . . 5 3 . 3 . Recycling Units . | . . . . . . . . . . . . Scanalyzers 5 | . . . . . . . 2 3 . . . Garrison Access 4 | . . . . . 1 . . 3 . . . Terminal Hacks 75 | . 10 . 50 1 . 2 6 3 2 1 . Record 49 | . . . 49 . . . . . . . . Robot Analysis 4 | . 3 . . . . . . 1 . . . Prototype ID Bank 8 | . 3 . . . . . 4 . . 1 . Open Door 2 | . . . . 1 . 1 . . . . . Level Access Points 1 | . 1 . . . . . . . . . . Branch Access Points 1 | . . . . . . . . 1 . . . Emergency Access Points 1 | . . . . . . . . . 1 . . Terminal Index 1 | . . . . . . . 1 . . . . Unreport Threat 1 | . . . . . . . 1 . . . . Locate Traps 2 | . 1 . . . . . . 1 . . . Zone Layout 2 | . 2 . . . . . . . . . . Security Stations 2 | . . . . . . 1 . . 1 . . Derelict Proto ID Bank 1 | . . . 1 . . . . . . . . Fabricator Hacks . | . . . . . . . . . . . . Repair Station Hacks 5 | . . . . . . . 1 2 . 2 . Scan Component 3 | . . . . . . . 1 1 . 1 . Repair 2 | . . . . . . . . 1 . 1 . Recycling Unit Hacks . | . . . . . . . . . . . . Scanalyzer 4 | . . . . . . . 2 2 . . . Insert Component 2 | . . . . . . . 1 1 . . . Analyze 2 | . . . . . . . 1 1 . . . Garrison Access Hacks 2 | . . . . . 1 . . 1 . . . Unlock Access 2 | . . . . . 1 . . 1 . . . Unauthorized Hacks . | . . . . . . . . . . . . Terminals . | . . . . . . . . . . . . Fabricators . | . . . . . . . . . . . . Repair Stations . | . . . . . . . . . . . . Recycling Units . | . . . . . . . . . . . . Scanalyzers . | . . . . . . . . . . . . Garrison Access . | . . . . . . . . . . . . Data Cores Recovered 1 | . . . . . . . . 1 . . . Used 1 | . . . . . . . . 1 . . . Hacking Detections 26 | . 7 . . . . 1 8 6 2 2 . Full Trace Events 16 | . 5 . . . . . 5 3 1 2 . Feedback Events 1 | . 1 . . . . . . . . . . Corruption 1 | . 1 . . . . . . . . . . Feedback Blocked . | . . . . . . . . . . . . Robot Schematics Acquired . | . . . . . . . . . . . . Robots Built . | . . . . . . . . . . . . Authchips . | . . . . . . . . . . . . Time . | . . . . . . . . . . . . Total Robot Build Rating . | . . . . . . . . . . . . Part Schematics Acquired 2 | . . . . . . . 1 1 . . . Parts Built . | . . . . . . . . . . . . Authchips . | . . . . . . . . . . . . Time . | . . . . . . . . . . . . Total Part Build Rating . | . . . . . . . . . . . . Parts Repaired 2 | . . . . . . . . 1 . 1 . Time 54 | . . . . . . . . 35 . 19 . Parts Recycled . | . . . . . . . . . . . . Recycled Matter . | . . . . . . . . . . . . Retrieved Matter . | . . . . . . . . . . . . Retrieved Components . | . . . . . . . . . . . . Parts Scanalyzed 2 | . . . . . . . 1 1 . . . Part Schematics Acquired 2 | . . . . . . . 1 1 . . . Parts Damaged . | . . . . . . . . . . . . Bothacking | -11 -10 -10 -10 -9 -8 -8 -8 -7 -7 -7 -7 ------------ Run | Yrd Mat Min Exi Min Mat Gar Mat Fac Gar Fac Low Used RIF Installer . | . . . . . . . . . . . . Robots Hacked . | . . . . . . . . . . . . Non-combat . | . . . . . . . . . . . . Combat . | . . . . . . . . . . . . Robot Hacks Applied . | . . . . . . . . . . . . Relay Couplers Released 33 | . . . . . . 21 . . 12 . . Machine Destruction 33 | . . . . . . 21 . . 12 . . Fabnet Peak Effective % . | . . . . . . . . . . . . Robots Rewired 9 | . . . . . . . . . 9 . . Allies Hacked . | . . . . . . . . . . . . Hacks Repelled . | . . . . . . . . . . . . Allies | -11 -10 -10 -10 -9 -8 -8 -8 -7 -7 -7 -7 -------- Run | Yrd Mat Min Exi Min Mat Gar Mat Fac Gar Fac Low Total Allies 17 | . . 3 . 2 . 2 . . 10 . . Largest Group 8 | . . 3 3 5 5 2 2 . 8 5 . Highest-Rated Group 114 | . . 40 40 80 80 51 51 . 114 69 . Highest-Rated Ally 62 | . . 16 16 31 31 31 31 . 62 21 . Total Orders 2 | . . . . . . . . . 2 . . STAY 1 | . . . . . . . . . 1 . . FOLLOW 1 | . . . . . . . . . 1 . . Ally Attacks 179 | . . . . 11 35 . 41 . 57 35 . Total Damage 2272 | . . . . 108 355 . 528 . 838 443 . Kills 26 | . . . . 4 5 . 4 . 8 5 . Allies Corrupted . | . . . . . . . . . . . . Allies Melted . | . . . . . . . . . . . . Intel | -11 -10 -10 -10 -9 -8 -8 -8 -7 -7 -7 -7 ------- Run | Yrd Mat Min Exi Min Mat Gar Mat Fac Gar Fac Low Robot Analysis Total 4 | . 3 . . . . . . 1 . . . Derelict Logs Recovered 4 | . . 2 . 2 . . . . . . . Drone Launches . | . . . . . . . . . . . . Drone Recoveries . | . . . . . . . . . . . . Exploration | -11 -10 -10 -10 -9 -8 -8 -8 -7 -7 -7 -7 ------------- Run | Yrd Mat Min Exi Min Mat Gar Mat Fac Gar Fac Low Turns Passed 12185 | 86 1144 909 350 728 296 2309 2240 1239 2319 374 191 Spaces Moved 8179 | 30 829 749 492 572 194 1076 1592 911 1203 174 357 Core 476 | 3 . . . . . 16 8 10 50 32 357 Treads 2252 | . . . . . . 944 65 . 1101 142 . Legs 872 | . . . . . . . 598 274 . . . Wheels 2808 | 27 829 749 23 504 97 . 579 . . . . Hover 1719 | . . . 469 68 97 116 342 627 . . . Flight 52 | . . . . . . . . . 52 . . Fastest Speed 29 | 50 80 80 56 56 48 50 50 48 29 50 50 Average Speed 107 | 79 81 84 57 96 84 187 96 77 150 139 50 Slowest Speed 260 | 95 95 90 80 116 117 240 200 260 189 160 50 Overloaded Moves . | . . . . . . . . . . . . Propulsion Burnouts . | . . . . . . . . . . . . Robots Hopped . | . . . . . . . . . . . . Cave-ins Triggered . | . . . . . . . . . . . . Exploration Rate (%) 62 | 3 93 99 90 95 17 97 86 19 99 5 51 Regions Visited 11 Branch Regions 4 Pre-discovered Areas 3 | . . . 1 1 . . . . . . 1 Known Exits Taken 4 | . . . . . 1 . 1 1 . 1 . Unknown Exits Taken 5 | 1 1 1 1 1 . . . . . . . Scrap Searched 5 | . . 1 . 1 . . . . . . 3 Spaces Dug . | . . . . . . . . . . . . Terrain Destroyed 890 | 2 10 30 . 21 44 116 239 127 258 43 . Melee . | . . . . . . . . . . . . Projectile 84 | . 6 9 . 21 16 . . 2 15 15 . AOE 806 | 2 4 21 . . 28 116 239 125 243 28 . Terrain Rammed 1 | . . . . . . . . . 1 . . Walls Destroyed . | . . . . . . . . . . . . Machines Disabled 1 | . . . . . . . . . 1 . . Actions | -11 -10 -10 -10 -9 -8 -8 -8 -7 -7 -7 -7 --------- Run | Yrd Mat Min Exi Min Mat Gar Mat Fac Gar Fac Low Total 10004 | 57 1041 870 563 657 271 1241 1987 1187 1538 226 366 Wait 442 | . 12 25 60 26 19 42 115 95 26 18 4 Move 8168 | 29 828 748 491 571 193 1075 1591 910 1202 173 357 Hop . | . . . . . . . . . . . . Pick Up 74 | 3 17 4 4 1 3 4 11 9 16 1 1 Fast Attach 128 | 6 10 3 . 5 7 16 38 16 24 2 1 Attach 53 | . 3 1 2 2 7 6 9 6 13 4 . Detach 42 | . 2 1 2 2 5 5 7 4 13 1 . Swap 70 | . 6 3 . 1 3 7 28 16 6 . . Drop 127 | 1 19 7 4 3 7 15 28 13 29 1 . Fire 757 | 18 140 78 . 46 27 69 136 106 108 26 3 Melee 27 | . 4 . . . . . 23 . . . . Ram 3 | . . . . . . . 1 1 1 . . Kick . | . . . . . . . . . . . . Crush . | . . . . . . . . . . . . Escape Stasis 13 | . . . . . . 2 . 11 . . . Rewire 100 | . . . . . . . . . 100 . . Trap . | . . . . . . . . . . . . Miscellaneous . | . . . . . . . . . . . . Route ------- -11/Scrapyard -10/Materials (discovered 5 exits: *Mat x3 / [*Min] / [Sub]) -10/Mines (discovered 3 exits: *Mat x2 / *Exi) -10/Exiles -9/Mines (discovered 2 exits: *Mat x2) -8/Materials (discovered 3 exits: Fac x2 / Gar) -8/Garrison (discovered 3 exits: *Mat x3) -8/Materials (discovered 2 exits: *Fac x2) -7/Factory (discovered 3 exits: *Low x2 / Gar) -7/Garrison (discovered 3 exits: *Fac x3) -7/Factory -7/Lower Caves History --------- Turn | Location | Event 15 | -11/Scrapyard | Discovered new exit (range 15) 87 | -11/Scrapyard | Entered Materials 256 | -10/Materials | Central database locked down 316 | -10/Materials | Build established: Mutant 345 | -10/Materials | Discovered new exit (range 5) 418 | -10/Materials | Discovered new exit (range 9) 425 | -10/Materials | Identified exit to Materials 1048 | -10/Materials | Discovered new exit (range 10) 1220 | -10/Materials | Discovered new exit (range 14) 1231 | -10/Materials | Entered Mines 1235 | -10/Mines | Learned 8 Materials zone layouts 1252 | -10/Mines | Learned Materials emergency access door positions 1290 | -10/Mines | Discovered exit to Materials (range 11) 1395 | -10/Mines | Deemed a non-threat by the Exiles lab entrance 1395 | -10/Mines | Discovered new exit (range 6) 1486 | -10/Mines | Found a damaged Exp. Sensor Array with a note attached 1489 | -10/Mines | Found Prototype Device 1489 | -10/Mines | Identified Exp. Sensor Array 1651 | -10/Mines | Received a Rocket Launcher from a helpful Derelict 1700 | -10/Mines | Core integrity fell below 50% 1763 | -10/Mines | Assisted by bots powering up and referring to "LRC-V3" 1920 | -10/Mines | Discovered exit to Materials (range 15) 2140 | -10/Mines | Entered Exiles 2140 | -10/Exiles | Accompanied by 3 allies 2174 | -10/Exiles | Met 8R-AWN 2183 | -10/Exiles | Met EX-HEX 2230 | -10/Exiles | Met EX-DEC 2249 | -10/Exiles | Visited The Gauntlet 2313 | -10/Exiles | Learned location of Zion (-6) 2325 | -10/Exiles | Met EX-BIN 2333 | -10/Exiles | Aligned with FarCom system 2334 | -10/Exiles | Given EX-Vault access code 2357 | -10/Exiles | Opened EX-Vault 2361 | -10/Exiles | Found 0b10 Alert Chip 2375 | -10/Exiles | Warned to stay clear of 0b10 Research branches 2382 | -10/Exiles | Exiles lab attacked by MAIN.C 2448 | -10/Exiles | Discovered new exit (range 10) 2490 | -10/Exiles | Left Exiles lab with 0b10 Alert Chip 2490 | -10/Exiles | Entered Mines 2490 | -9/Mines | Accompanied by 3 allies 2585 | -9/Mines | Discovered new exit (range 10) 2681 | -9/Mines | Met a Derelict who couldn't figure out how to use a Trap Extractor 2784 | -9/Mines | Learned location of 1 exit from Materials 2804 | -9/Mines | Assembled infested the area 2889 | -9/Mines | Discovered new exit (range 8) 2936 | -9/Mines | Joined a pair of Derelicts in attacking an 0b10 outpost 3025 | -9/Mines | Core integrity fell below 20% 3218 | -9/Mines | Entered Materials 3218 | -8/Materials | Accompanied by 5 allies 3218 | -8/Materials | Evolved 4 slots: Propulsion x2, Utility x1, Weapon x1 3219 | -8/Materials | Identified exit to Factory 3223 | -8/Materials | Led the pair of lost Derelicts to an unsafe place 3288 | -8/Materials | Garrison activated, responded to threat 3513 | -8/Materials | Identified exit to Garrison 3514 | -8/Materials | Entered Garrison 3520 | -8/Garrison | Lost 4 parts (1n1u2w) 3542 | -8/Garrison | Triggered checkpoint 3569 | -8/Garrison | Garrison Relay disabled 3818 | -8/Garrison | Phase Generator disabled 4068 | -8/Garrison | Triggered checkpoint 4086 | -8/Garrison | Triggered checkpoint 4180 | -8/Garrison | Triggered checkpoint 4298 | -8/Garrison | Discovered new exit (range 14) 4312 | -8/Garrison | Learned Materials security intel 4355 | -8/Garrison | Garrison Relay disabled 4490 | -8/Garrison | Build established: Scavenger-Skirmisher 4599 | -8/Garrison | Garrison Relay disabled 4781 | -8/Garrison | Discovered new exit (range 13) 4908 | -8/Garrison | Triggered checkpoint 5003 | -8/Garrison | Garrison Relay disabled 5211 | -8/Garrison | Garrison Relay disabled 5226 | -8/Garrison | Triggered checkpoint 5481 | -8/Garrison | Discovered new exit (range 15) 5532 | -8/Garrison | Rescued a captive Derelict 5542 | -8/Garrison | Rescued a captive Derelict 5823 | -8/Garrison | Entered Materials 5823 | -8/Materials | Accompanied by 2 allies 6102 | -8/Materials | Core integrity fell below 50% 6163 | -8/Materials | Lost 3 parts (1p1u1w) 6366 | -8/Materials | Lost 3 parts (2n1w) 6623 | -8/Materials | First assault squad dispatched 6778 | -8/Materials | Discovered exit to Factory (range 3) 6928 | -8/Materials | Build established: Scavenger-Mutant 7237 | -8/Materials | Build established: Scavenger-Skirmisher 7319 | -8/Materials | Discovered exit to Factory (range 15) 7500 | -8/Materials | Core integrity fell below 20% 7526 | -8/Materials | Lost 5 parts (5n) 7535 | -8/Materials | High security lockdown imminent 7556 | -8/Materials | Destroyed 7 combat bots 7615 | -8/Materials | High security lockdown engaged 7621 | -8/Materials | Sterilization system engaged 7621 | -8/Materials | Non-combat units ordered to evacuate 7668 | -8/Materials | System corruption reached 10% 7721 | -8/Materials | Combat units ordered to evacuate 7921 | -8/Materials | Ambient heat levels rising (+10) 8052 | -8/Materials | Build established: Hacker-Skirmisher 8063 | -8/Materials | Entered Factory 8063 | -7/Factory | Evolved 2 slots: Utility x1, Weapon x1 8084 | -7/Factory | Discovered new exit (range 10) 8117 | -7/Factory | Discovered new exit (range 5) 8169 | -7/Factory | Identified exit to Garrison 8421 | -7/Factory | Identified exit to Lower Caves 8463 | -7/Factory | First assault squad dispatched 8654 | -7/Factory | Destroyed 8 combat bots 8713 | -7/Factory | Repaired Prc. Assault Rifle 8958 | -7/Factory | Garrison activated, responded to threat 9014 | -7/Factory | Destroyed 8 combat bots 9087 | -7/Factory | High security lockdown imminent 9167 | -7/Factory | High security lockdown engaged 9185 | -7/Factory | Build established: Scavenger-Skirmisher 9301 | -7/Factory | Core integrity fell below 50% 9302 | -7/Factory | Entered Garrison 9332 | -7/Garrison | Lost 11 parts (4n2u5w) 9575 | -7/Garrison | Phase Generator disabled 9599 | -7/Garrison | H-XX Assembler disabled 9615 | -7/Garrison | Found Prototype Device 9615 | -7/Garrison | Identified Active Sensor Suite 9760 | -7/Garrison | Garrison Relay disabled 9877 | -7/Garrison | Triggered checkpoint 10028 | -7/Garrison | Garrison Relay disabled 10108 | -7/Garrison | Triggered checkpoint 10122 | -7/Garrison | Triggered checkpoint 10264 | -7/Garrison | Triggered checkpoint 10440 | -7/Garrison | Core integrity fell below 20% 10570 | -7/Garrison | Discovered new exit (range 12) 10664 | -7/Garrison | Triggered checkpoint 10720 | -7/Garrison | Triggered checkpoint 10753 | -7/Garrison | Triggered checkpoint 10810 | -7/Garrison | Triggered checkpoint 10820 | -7/Garrison | Build established: Commander-Skirmisher 10843 | -7/Garrison | Learned Factory security intel 10870 | -7/Garrison | Garrison Relay disabled 10893 | -7/Garrison | Discovered new exit (range 10) 11012 | -7/Garrison | Discovered new exit (range 7) 11072 | -7/Garrison | Triggered checkpoint 11093 | -7/Garrison | Lost 3 allies 11149 | -7/Garrison | Garrison Relay disabled 11612 | -7/Garrison | Build established: Commander-Gunner 11621 | -7/Garrison | Entered Factory 11621 | -7/Factory | Accompanied by 5 allies 11696 | -7/Factory | High security lockdown imminent 11758 | -7/Factory | Repaired Hvy. Assault Cannon 11776 | -7/Factory | High security lockdown engaged 11838 | -7/Factory | Lost 3 allies 11906 | -7/Factory | Destroyed 10 combat bots 11979 | -7/Factory | Released all parts (6) 11987 | -7/Factory | Discovered exit to Lower Caves (range 16) 11995 | -7/Factory | Entered Lower Caves 11998 | -7/Lower Caves | Lost 3 parts (3w) 12001 | -7/Lower Caves | Met a Warlord Commander 12002 | -7/Lower Caves | Learned location of Warlord (-4) 12003 | -7/Lower Caves | Warlord Commander delivered Encrypted Comm Array 12006 | -7/Lower Caves | Found Encrypted Comm Array 12186 | -7/Lower Caves | Spotted B-75 Beast 12186 | -7/Lower Caves | Destroyed by B-75 Beast with Magnetic Acceleration Cannon Last Messages --------------- 12006_ 48-3U6(g) slips back into the shadows. 12006_ Acquired Encrypted Comm Array. 12008_ K:U08P9VYRA4J|NWE78X#DYA6Y